bitfinex-derivatives/quotes_SOLF0:USTF0_20250523
["timestamp","ask_amount","ask_price","bid_price","bid_amount"]
[1747961647198,5.5292,180.82,180.8,0.03516182]
[1747961647500,0.0349494,180.84,180.8,0.03516182]
[1747961648400,5.529,180.83,180.8,0.03516182]
[1747961648599,0.0349494,180.84,180.8,0.03516182]
[1747961649101,0.0349494,180.84,180.83,5.5288]
[1747961649296,0.0349494,180.84,180.81,133.84]
[1747961649800,0.0349494,180.84,180.82,5.5291]
[1747961650899,0.0349494,180.84,180.81,133.84]
[1747961651391,0.0349494,180.84,180.83,5.5288]
[1747961653601,0.0349494,180.84,180.83,110.6088]
[1747961656301,0.0349494,180.84,180.83,105.08]
[1747961657009,133.84,180.91,180.83,105.08]
[1747961657307,5.08717321,181.0,180.83,113.09708337]
[1747961657498,5.08717321,181.0,180.91,5.5263]
[1747961657697,5.5258,180.93,180.92,105.06]
[1747961658006,0.03983603,180.94,180.92,105.06]
[1747961658213,5.5258,180.93,180.92,105.06]
[1747961658505,0.04228011,180.94,180.91,0.03895189]
[1747961658703,0.03828135,180.94,180.91,0.03960082]
[1747961658904,5.5258,180.93,180.91,0.03960082]
[1747961659092,0.03828135,180.94,180.91,0.03960082]
[1747961659800,5.5261,180.92,180.91,0.03960082]
[1747961662906,5.5278,180.87,180.84,3.9568]
[1747961663123,3.8232,180.96,180.84,1.9475]
[1747961663603,3.8232,180.96,180.84,7.4758]
[1747961663912,0.03634463,180.92,180.88,0.03825138]
[1747961664110,5.527,180.89,180.88,0.03825138]
[1747961669614,0.03634463,180.92,180.88,0.03825138]
[1747961670309,5.527,180.89,180.88,0.03825138]
[1747961671920,5.5268,180.9,180.88,0.03825138]
[1747961672517,5.527,180.89,180.88,0.03825138]
[1747961673215,5.03912783,180.92,180.79,133.403]
[1747961673511,136.4227832,180.89,180.79,131.42]
[1747961673718,3.9206,180.88,180.75,140.8397]
[1747961673914,3.9206,180.88,180.75,135.3084]
[1747961674109,5.0027832,180.83,180.74,5.62046805]
[1747961674408,0.03614877,180.8,180.74,5.62046805]
[1747961675821,0.03614877,180.8,180.72,8.43095013]
[1747961675822,5.5313,180.76,180.71,131.42]
[1747961676009,0.04072015,180.75,180.71,131.42]
[1747961676410,0.04072015,180.75,180.72,5.5319]
[1747961677118,0.04072015,180.75,180.71,131.42]
[1747961677512,0.04072015,180.75,180.73,5.5318]
[1747961677818,0.04072015,180.75,180.71,131.42]
[1747961678212,0.04072015,180.75,180.74,5.5316]
[1747961678414,0.04072015,180.75,180.71,131.42]
[1747961679620,0.04072015,180.75,180.73,5.5319]
[1747961680219,0.04072015,180.75,180.74,5.5316]
[1747961680518,1.9154,180.85,180.73,5.0027832]
[1747961680905,136.59667493,180.86,180.73,5.0027832]
[1747961681506,0.03912779,180.81,180.78,5.57231003]
[1747961682125,0.03912779,180.81,180.78,0.04211003]
[1747961684123,5.53,180.8,180.78,0.04211003]
[1747961685023,5.5301,180.79,180.78,0.04211003]
[1747961687725,0.03912779,180.81,180.78,0.04211003]
[1747961688327,5.53,180.8,180.78,0.04211003]
[1747961688719,0.03912779,180.81,180.78,0.04211003]
[1747961689019,5.5298,180.8,180.78,0.04211003]
[1747961689221,0.03912779,180.81,180.78,0.04211003]
[1747961691126,5.53,180.8,180.78,0.04211003]
[1747961691525,0.03912779,180.81,180.8,5.5298]
[1747961693225,131.32,180.89,180.78,0.04211003]
[1747961693529,5.00831039,180.86,180.73,4.22387091]
[1747961693723,5.5316,180.74,180.73,4.22387091]
[1747961694116,131.32,180.82,180.73,4.22387091]
[1747961694317,0.04057564,180.79,180.76,0.04213411]
[1747961695028,5.5307,180.77,180.76,0.04213411]
[1747961700233,0.04057564,180.79,180.76,0.04213411]
[1747961700431,10.69749991,180.9,180.77,5.00932213]
[1747961700646,10.66427493,180.87,180.77,5.00932213]
[1747961700932,5.13667493,180.87,180.8,5.00932213]
[1747961701119,5.13667493,180.87,180.81,131.34]
[1747961701431,5.5285,180.85,180.82,0.03952751]
[1747961701632,0.03856455,180.86,180.82,0.03952751]
[1747961701822,5.5283,180.85,180.82,0.03952751]
[1747961703428,0.03856455,180.86,180.82,0.03952751]
[1747961705822,0.03856455,180.86,180.84,5.5284]
[1747961706124,0.03856455,180.86,180.82,0.03952751]
[1747961706527,0.03856455,180.86,180.85,5.5282]
[1747961707435,5.13667493,180.94,180.82,0.03952751]
[1747961707735,5.13667493,180.94,180.81,131.34]
[1747961707929,5.13667493,180.94,180.88,5.5273]
[1747961708133,5.13667493,180.94,180.86,236.38]
[1747961708435,0.03789101,180.92,180.88,0.03710945]
[1747961708634,5.527,180.89,180.88,0.03710945]
[1747961710736,5.529,180.83,180.81,4.22387091]
[1747961711038,131.28,180.91,180.8,1.944]
[1747961711242,131.28,180.91,180.85,5.528]
[1747961711443,5.5268,180.9,180.8,1.944]
[1747961711739,0.0392129,180.87,180.86,5.5277]
[1747961711933,0.0392129,180.87,180.84,131.28]
[1747961713645,0.0392129,180.87,180.86,5.5279]
[1747961714333,0.0392129,180.87,180.85,5.5282]
[1747961714641,5.5668129,180.87,180.84,131.28]
[1747961714837,0.0392129,180.87,180.84,131.28]
[1747961715245,0.0392129,180.87,180.83,0.03682885]
[1747961715746,5.528,180.86,180.83,0.03682885]
[1747961716238,0.0392129,180.87,180.83,0.03682885]
[1747961716441,5.528,180.86,180.83,0.03682885]
[1747961716632,0.0392129,180.87,180.83,0.03682885]
[1747961716832,5.5286,180.84,180.83,0.03682885]
[1747961717234,131.02,180.85,180.78,4.22387091]
[1747961717942,5.5291,180.83,180.78,4.22387091]
[1747961718145,131.02,180.85,180.78,4.22387091]
[1747961718441,0.03721134,180.83,180.8,0.03672932]
[1747961718644,5.5294,180.82,180.8,0.03672932]
[1747961718845,0.03721134,180.83,180.8,0.03672932]
[1747961719046,5.5292,180.82,180.8,0.03672932]
[1747961719246,0.03721134,180.83,180.8,0.03672932]
[1747961719646,5.5295,180.81,180.8,0.03672932]
[1747961720352,5.5312,180.76,180.73,4.22387091]
[1747961720752,131.02,180.85,180.73,4.22387091]
[1747961721552,5.5304,180.78,180.77,0.04010318]
[1747961722556,5.5318,180.74,180.71,131.04]
[1747961722854,133.0412,180.8,180.71,131.04]
[1747961723049,133.0412,180.8,180.71,136.5725]
[1747961723551,0.03967753,180.77,180.71,136.5725]
[1747961723851,5.5315,180.75,180.71,136.5725]
[1747961724156,5.5315,180.75,180.72,5.5322]
[1747961724349,5.5317,180.74,180.71,131.04]
[1747961724652,0.03967753,180.77,180.69,5.5328]
[1747961724854,5.5319,180.74,180.69,5.5328]
[1747961725162,0.04126578,180.75,180.68,4.22387091]
[1747961725163,131.08,180.73,180.68,4.22387091]
[1747961725458,5.5347,180.64,180.57,3.8583]
[1747961725653,131.12085488,180.65,180.54,3.27316564]
[1747961725859,5.5359,180.6,180.54,3.27316564]
[1747961726057,5.5359,180.6,180.59,5.60452831]
[1747961726556,0.03867354,180.61,180.59,5.60452831]
[1747961728056,0.03867354,180.61,180.6,5.5359]
[1747961728454,0.03867354,180.61,180.59,5.60452831]
[1747961729057,0.03867354,180.61,180.57,107.1072]
[1747961729356,0.03867354,180.61,180.6,5.5359]
[1747961729745,136.25667493,180.68,180.64,5.5344]
[1747961729951,136.25667493,180.68,180.58,1.9785]
[1747961730663,0.03623168,180.65,180.61,0.03631037]
[1747961731159,5.57063168,180.65,180.61,0.03631037]
[1747961731350,0.03623168,180.65,180.61,0.03631037]
[1747961731856,5.5347,180.64,180.61,0.03631037]
[1747961732157,0.03623168,180.65,180.61,0.03631037]
[1747961732359,5.5347,180.64,180.61,0.03631037]
[1747961733056,5.57063168,180.65,180.61,0.03631037]
[1747961733256,0.03623168,180.65,180.61,0.03631037]
[1747961736355,5.5353,180.62,180.61,0.03631037]
[1747961736555,131.18,180.63,180.54,5.5377]
[1747961736755,131.18,180.63,180.53,133.1585]
[1747961737059,131.18,180.63,180.53,1.9785]
[1747961737660,5.5367,180.58,180.53,7.5163]
[1747961738557,0.04087426,180.6,180.53,7.5163]
[1747961738764,5.5369,180.57,180.53,7.5163]
[1747961739367,5.5366,180.58,180.53,7.5163]
[1747961739760,0.04087426,180.6,180.51,1.9493]
[1747961740063,0.03848439,180.57,180.51,1.9493]
[1747961740259,0.03848439,180.57,180.52,5.5383]
[1747961740466,5.5383,180.52,180.49,131.18]
[1747961740765,0.04104308,180.52,180.45,133.2238]
[1747961740970,0.04104308,180.52,180.45,138.7642]
[1747961741162,0.04104308,180.52,180.45,2.0238]
[1747961741868,5.5389,180.51,180.47,5.5397]
[1747961742165,0.04104308,180.52,180.45,2.0238]
[1747961742362,5.539,180.5,180.46,5.5401]
[1747961742562,0.04104308,180.52,180.46,5.5401]
[1747961743566,0.04104308,180.52,180.45,2.0238]
[1747961744269,5.5399,180.47,180.45,2.0238]
[1747961744469,0.03514773,180.48,180.42,2.0491]
[1747961744670,0.03514773,180.48,180.43,5.5411]
[1747961744869,0.03514773,180.48,180.42,2.0491]
[1747961745167,0.03514773,180.48,180.45,5.5402]
[1747961745372,0.03514773,180.48,180.42,2.0491]
[1747961745569,5.5384,180.52,180.42,2.0491]
[1747961745783,5.5384,180.52,180.47,5.5396]
[1747961745983,5.5388,180.51,180.47,5.5396]
[1747961746184,5.5388,180.51,180.42,2.0491]
[1747961746484,0.0379893,180.48,180.47,5.5399]
[1747961749085,68.94810663,374.29,180.45,0.03491962]
[1747961749086,130.98,180.58,180.45,131.01491962]
[1747961749389,5.5372,180.56,180.52,5.5381]
[1747961749588,130.98,180.59,180.52,5.5381]
[1747961749981,0.03581749,180.57,180.54,0.03828124]
[1747961750287,5.5371,180.56,180.54,0.03695934]
[1747961750690,0.03581749,180.57,180.54,0.03695934]
[1747961751890,5.5373,180.56,180.54,0.03695934]
[1747961752890,5.57261749,180.57,180.54,0.03695934]
[1747961753092,0.03581749,180.57,180.54,0.03695934]
[1747961753479,5.5374,180.55,180.54,0.03695934]
[1747961758083,5.5374,180.55,180.54,5.934e-05]
[1747961764200,5.54,180.55,180.4,131.0]
[1747961764402,131.0,180.54,180.4,131.0]
[1747961764700,5.5406,180.45,180.4,131.0]
[1747961765090,0.03661654,180.44,180.41,5.57751264]
[1747961765296,0.03661654,180.44,180.41,0.03601264]
[1747961765501,0.03661654,180.44,180.41,5.57761264]
[1747961766199,0.03661654,180.44,180.41,0.03601264]
[1747961766701,0.03661654,180.44,180.42,5.5414]
[1747961766902,0.03661654,180.44,180.41,0.03601264]
[1747961767104,5.57751654,180.44,180.41,0.03601264]
[1747961767302,0.03661654,180.44,180.41,0.03601264]
[1747961768997,131.0,180.55,180.41,5.57601264]
[1747961769199,131.0,180.55,180.4,131.0]
[1747961769200,5.5385,180.52,180.4,131.0]
[1747961769497,131.0,180.55,180.4,131.0]
[1747961769801,131.0,180.55,180.43,5.02234859]
[1747961770002,0.03850321,180.51,180.47,0.03969061]
[1747961770207,5.57740321,180.51,180.47,5.57939061]
[1747961770395,0.03850321,180.51,180.47,5.57939061]
[1747961770590,0.03850321,180.51,180.47,0.03969061]
[1747961770803,5.5395,180.49,180.47,0.03969061]
[1747961771009,0.03850321,180.51,180.47,0.03969061]
[1747961771308,5.539,180.5,180.47,0.03969061]
[1747961772391,5.57730321,180.51,180.47,0.03969061]
[1747961772596,0.03850321,180.51,180.47,0.03969061]
[1747961773004,5.5375,180.55,180.52,5.5382]
[1747961773403,131.02,180.59,180.45,131.02]
[1747961773606,5.5377,180.55,180.51,5.5384]
[1747961773999,5.58007273,180.55,180.51,5.58061828]
[1747961774307,0.04237273,180.55,180.51,0.04221828]
[1747961774504,0.04237273,180.55,180.52,3.8797]
[1747961775602,5.58007273,180.55,180.52,3.8797]
[1747961775807,0.04237273,180.55,180.52,3.8797]
[1747961776003,130.74,180.54,180.4,130.74]
[1747961776208,130.74,180.54,180.41,4.0446]
[1747961776706,5.5411,180.43,180.42,5.59160038]
[1747961777508,0.0804,180.59,180.42,247.13160038]
[1747961777705,130.74,180.62,180.42,241.59160038]
[1747961778003,130.74,180.62,180.42,249.62503647]
[1747961778210,138.77343609,180.62,180.42,5.59160038]
[1747961778404,5.5381,180.53,180.43,236.0]
[1747961778713,0.0386285,180.5,180.46,0.03867542]
[1747961778902,130.74,180.56,180.46,0.04211631]
[1747961779103,0.03981318,180.53,180.46,0.04211631]
[1747961779601,0.03981318,180.53,180.52,5.5383]
[1747961780814,0.03981318,180.53,180.51,0.03656071]
[1747961781205,0.03981318,180.53,180.52,5.5383]
[1747961782209,130.74,180.6,180.51,0.03656071]
[1747961782414,5.13667493,180.61,180.51,0.03656071]
[1747961783516,0.04151524,180.58,180.51,0.03656071]
[1747961784108,0.04151524,180.58,180.55,5.5372]
[1747961784319,0.04151524,180.58,180.55,0.03817256]
[1747961784815,5.57801524,180.58,180.55,0.03817256]
[1747961786317,0.04151524,180.58,180.55,5.57557256]
[1747961786611,0.04151524,180.58,180.55,0.03817256]
[1747961789013,0.04151524,180.58,180.57,5.5368]
[1747961789219,620.21667493,180.65,180.55,0.03817256]
[1747961789620,5.5355,180.62,180.58,5.5363]
[1747961790119,5.57689596,180.62,180.58,5.57792217]
[1747961791022,0.04139596,180.62,180.58,0.04162217]
[1747961791717,5.5358,180.61,180.58,0.04162217]
[1747961792118,0.04139596,180.62,180.58,0.04162217]
[1747961792318,5.5356,180.61,180.58,0.04162217]
[1747961792520,0.04139596,180.62,180.58,0.04162217]
[1747961792817,5.5362,180.59,180.58,0.04162217]
[1747961793123,0.04139596,180.62,180.58,0.04162217]
[1747961793822,5.5356,180.61,180.58,0.04162217]
[1747961794020,0.04139596,180.62,180.58,0.04162217]
[1747961794424,5.536,180.6,180.58,0.04162217]
[1747961795122,5.5362,180.59,180.58,0.04162217]
[1747961800827,141.936,180.6,180.58,0.04162217]
[1747961801325,136.4,180.6,180.58,0.04162217]
[1747961801525,5.5362,180.59,180.58,0.04162217]
[1747961803127,136.4,180.6,180.58,0.04162217]
[1747961803428,0.04139596,180.62,180.58,0.04162217]
[1747961804025,5.5358,180.61,180.58,0.04162217]
[1747961804330,0.04139596,180.62,180.58,0.04162217]
[1747961804729,5.5358,180.61,180.58,5.57802217]
[1747961805228,5.5358,180.61,180.58,0.04162217]
[1747961805822,5.5359,180.6,180.58,0.04162217]
[1747961806633,0.04139596,180.62,180.58,0.04162217]
[1747961807231,5.5361,180.6,180.58,0.04162217]
[1747961807638,0.04139596,180.62,180.58,0.04162217]
[1747961807831,5.5362,180.59,180.58,0.04162217]
[1747961808127,0.04139596,180.62,180.58,0.04162217]
[1747961809032,5.5361,180.6,180.58,0.04162217]
[1747961809234,0.04139596,180.62,180.58,0.04162217]
[1747961809642,5.5356,180.61,180.58,0.04162217]
[1747961811431,5.57689596,180.62,180.58,0.04162217]
[1747961811627,0.04139596,180.62,180.58,0.04162217]
[1747961811932,5.57679596,180.62,180.58,5.57792217]
[1747961812632,5.57679596,180.62,180.59,5.536]
[1747961812934,0.04139596,180.62,180.59,5.536]
[1747961813637,0.04139596,180.62,180.6,5.5358]
[1747961813835,5.57679596,180.62,180.58,0.04162217]
[1747961814035,0.04139596,180.62,180.58,0.04162217]
[1747961815535,0.04139596,180.62,180.6,5.5358]
[1747961815734,0.04139596,180.62,180.58,0.04162217]
[1747961816638,0.04139596,180.62,180.61,5.5356]
[1747961817532,5.13667493,180.69,180.6,133.26]
[1747961817834,5.13667493,180.69,180.6,138.27752777]
[1747961818032,5.13667493,180.69,180.64,5.5344]
[1747961818234,5.13667493,180.69,180.64,110.7544]
[1747961818433,10.66997493,180.69,180.64,105.22]
[1747961818733,0.03847471,180.68,180.65,0.03972316]
[1747961819537,0.03847471,180.68,180.65,2.06982316]
[1747961819841,0.03847471,180.68,180.65,137.26982316]
[1747961820029,0.03847471,180.68,180.67,5.5337]
[1747961820234,0.03847471,180.68,180.65,137.26982316]
[1747961820529,0.03847471,180.68,180.66,5.5338]
[1747961820834,5.13667493,180.76,180.65,137.26982316]
[1747961821037,5.5318,180.74,180.7,5.5326]
[1747961821634,5.5318,180.74,180.65,142.24762777]
[1747961821941,0.04080732,180.71,180.7,5.5328]
[1747961822743,5.13667493,180.76,180.7,133.24]
[1747961823237,5.5318,180.74,180.7,138.7728]
[1747961823548,5.13667493,180.76,180.7,138.7728]
[1747961823744,0.04225466,180.75,180.7,138.7728]
[1747961824041,0.04225466,180.75,180.71,0.04184249]
[1747961825144,5.13667493,180.81,180.71,110.23937026]
[1747961825454,5.13667493,180.81,180.72,3.8831]
[1747961825745,5.53,180.8,180.76,5.531]
[1747961825939,5.13667493,180.81,180.72,3.8831]
[1747961826249,0.03711222,180.78,180.75,0.04051226]
[1747961827246,5.56751222,180.78,180.75,0.04051226]
[1747961828148,5.5307,180.77,180.75,0.04051226]
[1747961828447,0.03711222,180.78,180.75,0.04051226]
[1747961829451,0.03711222,180.78,180.75,133.22051226]
[1747961830154,0.03711222,180.78,180.75,138.75181226]
[1747961830352,0.03711222,180.78,180.75,133.22051226]
[1747961830647,0.03711222,180.78,180.75,138.75161226]
[1747961830855,133.2,180.86,180.75,133.22051226]
[1747961831155,133.2,180.86,180.75,133.18]
[1747961831354,133.2,180.86,180.77,5.5304]
[1747961831845,0.03907973,180.83,180.8,0.03618612]
[1747961832543,5.5295,180.81,180.8,0.03618612]
[1747961838050,5.5293,180.82,180.8,0.03618612]
[1747961839853,5.5295,180.81,180.8,0.03618612]
[1747961842057,5.5293,180.82,180.8,0.03618612]
[1747961842256,0.03907973,180.83,180.8,0.03618612]
[1747961842448,5.5295,180.81,180.8,0.03618612]
[1747961843859,0.03907973,180.83,180.8,0.03618612]
[1747961844360,5.56817973,180.83,180.8,0.03618612]
[1747961844549,0.03907973,180.83,180.8,0.03618612]
[1747961845459,5.5294,180.82,180.8,0.03618612]
[1747961845660,0.03907973,180.83,180.8,0.03618612]
[1747961846063,5.5292,180.82,180.8,0.03618612]
[1747961846253,0.03907973,180.83,180.8,0.03618612]
[1747961846558,5.5295,180.81,180.8,0.03618612]
[1747961850960,5.5316,180.74,180.73,130.74]
[1747961851365,130.74,180.81,180.73,130.74]
[1747961851570,5.5315,180.75,180.73,130.74]
[1747961852464,5.57184715,180.76,180.73,130.74]
[1747961852764,0.04074715,180.76,180.73,130.74]
[1747961853068,0.04074715,180.76,180.73,136.2719]
[1747961853358,0.04074715,180.76,180.73,130.74]
[1747961853758,0.04074715,180.76,180.74,5.5316]
[1747961854062,0.04074715,180.76,180.73,130.74]
[1747961854574,0.04074715,180.76,180.75,5.5313]
[1747961855273,130.76,180.85,180.78,5.5304]
[1747961855777,5.5297,180.81,180.73,130.74]
[1747961856073,130.76,180.85,180.73,130.74]
[1747961856273,0.03535549,180.81,180.78,5.5301]
[1747961856574,0.03535549,180.81,180.77,0.03597609]
[1747961857578,0.03535549,180.81,180.79,5.53]
[1747961858172,0.03535549,180.81,180.8,5.5298]
[1747961859077,0.03535549,180.81,180.79,5.53]
[1747961859783,0.03535549,180.81,180.77,0.03597609]
[1747961860277,5.56495549,180.81,180.78,5.5304]
[1747961860670,0.03535549,180.81,180.77,0.03597609]
[1747961860877,5.5304,180.78,180.77,0.03597609]
[1747961861073,0.03535549,180.81,180.77,0.03597609]
[1747961861480,5.5301,180.79,180.77,0.03597609]
[1747961861879,0.03535549,180.81,180.77,0.03597609]
[1747961862283,5.5304,180.78,180.77,0.03597609]
[1747961862474,0.03535549,180.81,180.77,0.03597609]
[1747961862675,5.5302,180.79,180.77,0.03597609]
[1747961863483,5.5304,180.78,180.77,0.03597609]
[1747961865487,5.17203042,180.81,180.72,1.9777]
[1747961865687,5.13667493,180.81,180.72,1.9777]
[1747961865886,5.5304,180.78,180.75,5.5313]
[1747961866190,5.5304,180.78,180.72,1.9777]
[1747961866388,0.04059842,180.77,180.75,5.5313]
[1747961866689,0.04059842,180.77,180.73,0.03671306]
[1747961867194,5.57149842,180.77,180.73,5.56851306]
[1747961867896,0.04059842,180.77,180.73,0.03671306]
[1747961868389,5.5312,180.76,180.73,0.03671306]
[1747961868778,0.04059842,180.77,180.73,0.03671306]
[1747961869084,5.01752777,180.76,180.63,235.86]
[1747961869290,5.01752777,180.73,180.63,235.86]
[1747961869785,5.01752777,180.73,180.63,130.76]
[1747961870090,0.03806635,180.7,180.66,0.03856144]
[1747961870591,5.57086635,180.7,180.66,5.57236144]
[1747961870889,0.03806635,180.7,180.66,5.57236144]
[1747961871090,0.03806635,180.7,180.68,5.5334]
[1747961871787,0.03806635,180.7,180.66,0.03856144]
[1747961871788,0.03806635,180.7,180.69,5.5331]
[1747961872785,5.15946224,180.74,180.72,5.532]
[1747961872981,5.15946224,180.74,180.68,1.9867]
[1747961873692,0.03615152,180.73,180.69,0.04031925]
[1747961874783,5.5323,180.72,180.69,0.04031925]
[1747961875093,0.03615152,180.73,180.69,0.04031925]
[1747961875388,0.03615152,180.73,180.72,5.5322]
[1747961877698,130.56,180.79,180.7,130.56]
[1747961877897,483.13946224,180.8,180.7,130.56]
[1747961877898,5.15946224,180.8,180.71,1.8616]
[1747961878098,5.15946224,180.8,180.72,105.14]
[1747961878493,5.15946224,180.8,180.73,2.0409]
[1747961878698,0.04210988,180.78,180.75,0.04171152]
[1747961879301,0.04210988,180.78,180.77,5.5307]
[1747961879593,6.87928299,180.82,180.75,135.61923929]
[1747961879803,10.31892449,180.84,180.83,5.5289]
[1747961880002,6.86771021,180.88,180.81,105.14]
[1747961880300,12.39511021,180.88,180.83,5.5288]
[1747961880502,0.03861458,180.87,180.84,0.03712144]
[1747961880901,5.56621458,180.87,180.84,0.03712144]
[1747961881203,0.03861458,180.87,180.84,0.03712144]
[1747961882102,5.5279,180.86,180.84,0.03712144]
[1747961882401,0.03861458,180.87,180.84,0.03712144]
[1747961882602,5.5282,180.85,180.84,0.03712144]
[1747961888219,5.5282,180.85,180.84,2.144e-05]
[1747961888506,5.5282,180.85,180.69,8.00842604]
[1747961888507,5.52,180.85,180.74,105.1]
[1747961888805,2.0008,180.86,180.73,4.29606292]
[1747961889207,2.0008,180.86,180.73,9.82776292]
[1747961889409,0.04227084,180.81,180.78,0.03950329]
[1747961890006,5.5301,180.79,180.78,0.03950329]
[1747961892615,0.04227084,180.81,180.78,0.03950329]
[1747961893320,5.5298,180.8,180.78,0.03950329]
[1747961893617,0.04227084,180.81,180.78,0.03950329]
[1747961894611,5.5298,180.8,180.78,0.03950329]
[1747961894917,0.04227084,180.81,180.78,0.03950329]
[1747961895417,5.5301,180.79,180.78,0.03950329]
[1747961897316,0.04227084,180.81,180.78,0.03950329]
[1747961898619,0.04227084,180.81,180.8,5.5298]
[1747961900111,130.52,180.86,180.82,5.5289]
[1747961900319,1.9205,180.89,180.79,105.1]
[1747961900714,5.5278,180.87,180.83,5.5286]
[1747961900909,1.9205,180.89,180.79,105.1]
[1747961901115,0.03594942,180.86,180.82,0.04254068]
[1747961901325,0.03594942,180.86,180.85,5.528]
[1747961901717,0.03594942,180.86,180.82,0.04254068]
[1747961902421,0.03594942,180.86,180.85,5.5282]
[1747961903227,0.03594942,180.86,180.82,0.04254068]
[1747961903228,0.03594942,180.86,180.84,5.5284]
[1747961903419,0.03594942,180.86,180.82,0.04254068]
[1747961904224,5.5286,180.84,180.82,0.04254068]
[1747961904426,0.03594942,180.86,180.82,0.04254068]
[1747961905928,0.03594942,180.86,180.82,5.57174068]
[1747961906129,5.5284,180.85,180.82,5.57174068]
[1747961906330,0.03594942,180.86,180.82,0.04254068]
[1747961906630,5.5283,180.85,180.82,0.04254068]
[1747961907130,5.5283,180.85,180.82,5.57154068]
[1747961907326,5.5286,180.84,180.82,0.04254068]
[1747961907528,0.03594942,180.86,180.82,0.04254068]
[1747961907830,5.5287,180.84,180.82,0.04254068]
[1747961908030,0.03594942,180.86,180.82,5.57164068]
[1747961908228,0.03594942,180.86,180.82,0.04254068]
[1747961908626,5.5283,180.85,180.82,5.57144068]
[1747961908924,0.03594942,180.86,180.82,0.04254068]
[1747961909833,5.5284,180.85,180.82,5.57154068]
[1747961910736,5.56404942,180.86,180.82,5.57154068]
[1747961911034,5.56404942,180.86,180.83,5.5288]
[1747961912233,5.56404942,180.86,180.82,5.57164068]
[1747961912734,0.03594942,180.86,180.82,0.04254068]
[1747961913236,5.5288,180.84,180.82,0.04254068]
[1747961914230,5.5284,180.85,180.82,0.04254068]
[1747961914736,5.5284,180.85,180.82,5.57174068]
[1747961915642,5.5284,180.85,180.82,0.04254068]
[1747961915834,5.5288,180.84,180.82,0.04254068]
[1747961916136,0.03594942,180.86,180.82,0.04254068]
[1747961916336,0.03594942,180.86,180.82,5.57164068]
[1747961917140,5.5285,180.85,180.82,0.04254068]
[1747961918542,5.5286,180.84,180.82,0.04254068]
[1747961919043,5.5284,180.85,180.82,0.04254068]
[1747961919541,0.03594942,180.86,180.82,0.04254068]
[1747961920441,5.5286,180.84,180.82,0.04254068]
[1747961923851,5.5283,180.85,180.82,5.57164068]
[1747961924549,0.03594942,180.86,180.82,0.04254068]
[1747961924845,6.85359782,180.93,180.83,130.14]
[1747961925039,12.37949782,180.93,180.9,5.5267]
[1747961925244,6.85359782,180.93,180.9,5.5267]
[1747961925546,5.5261,180.92,180.89,5.5269]
[1747961925956,5.56485501,180.92,180.89,5.56773208]
[1747961926154,5.5264,180.91,180.89,0.04083208]
[1747961926457,0.03875501,180.92,180.89,0.04083208]
[1747961926657,5.5267,180.9,180.89,0.04083208]
[1747961931961,5.5289,180.83,180.8,5.5298]
[1747961932163,132.0301,180.91,180.79,108.8986]
[1747961932164,137.0350912,180.91,180.79,108.8986]
[1747961932466,5.5286,180.84,180.81,5.5294]
[1747961932764,5.5286,180.84,180.79,108.8986]
[1747961933067,0.03663468,180.83,180.8,5.56642257]
[1747961933365,5.56553468,180.83,180.8,5.56642257]
[1747961934466,0.03663468,180.83,180.81,5.5294]
[1747961934666,0.03663468,180.83,180.8,0.03672257]
[1747961935066,0.03663468,180.83,180.82,5.5292]
[1747961936169,0.03663468,180.83,180.8,5.56642257]
[1747961936466,0.03663468,180.83,180.8,0.03672257]
[1747961936669,5.56563468,180.83,180.8,0.03672257]
[1747961937066,0.03663468,180.83,180.8,0.03672257]
[1747961938169,0.03663468,180.83,180.82,5.5292]
[1747961939667,0.03663468,180.83,180.8,0.03672257]
[1747961940269,0.03663468,180.83,180.81,5.5293]
[1747961940470,0.03663468,180.83,180.8,0.03672257]
[1747961940968,5.56563468,180.83,180.8,0.03672257]
[1747961941767,0.03663468,180.83,180.8,0.03672257]
[1747961942476,0.03663468,180.83,180.82,5.5292]
[1747961942872,5.16295675,180.9,180.8,0.03672257]
[1747961943174,5.5271,180.89,180.8,0.03672257]
[1747961943474,5.5271,180.89,180.85,5.5279]
[1747961943667,5.16295675,180.9,180.85,5.5279]
[1747961943668,1.9101,180.91,180.85,5.5279]
[1747961943975,0.04154092,180.9,180.86,0.04155691]